[Event "*** Titled Tuesday Blitz"]
[Site "Chess.com"]
[Date "2020.04.14"]
[Round "5"]
[White "BlueWizzard"]
[Black "gena217"]
[Result "1/2-1/2"]
[WhiteElo "2779"]
[BlackElo "2917"]
[TimeControl "180+1"]
[EndTime "10:50:58 PDT"]
[Termination "Game drawn by agreement"]

1. d4 {[%clk 0:03:00.9]} 1... Nf6 {[%clk 0:02:59.8]} 2. Nc3 {[%clk 0:03:01.5]}
2... d5 {[%clk 0:02:59.8]} 3. Bf4 {[%clk 0:03:02]} 3... c5 {[%clk 0:02:58.9]} 4.
e3 {[%clk 0:03:02.3]} 4... cxd4 {[%clk 0:02:59.3]} 5. exd4 {[%clk 0:03:03]} 5...
a6 {[%clk 0:02:59.7]} 6. Nf3 {[%clk 0:03:01.9]} 6... Nc6 {[%clk 0:02:59.4]} 7.
Ne5 {[%clk 0:03:01.7]} 7... Qb6 {[%clk 0:02:59.1]} 8. Nxc6 {[%clk 0:02:55.1]}
8... Qxc6 {[%clk 0:03:00]} 9. Bd3 {[%clk 0:02:53.5]} 9... Bg4 {[%clk 0:02:59.5]}
10. Qd2 {[%clk 0:02:50.2]} 10... e6 {[%clk 0:02:58.2]} 11. a3 {[%clk 0:02:43.1]}
11... Bh5 {[%clk 0:02:50.7]} 12. O-O {[%clk 0:02:42.6]} 12... Bg6 {[%clk
0:02:50.3]} 13. Be5 {[%clk 0:02:42.5]} 13... Bd6 {[%clk 0:02:44.9]} 14. Bxd6
{[%clk 0:02:37.2]} 14... Qxd6 {[%clk 0:02:44.7]} 15. Rae1 {[%clk 0:02:38.1]}
15... O-O {[%clk 0:02:42.7]} 16. h3 {[%clk 0:02:32.6]} 16... Rac8 {[%clk
0:02:41.7]} 17. Re3 {[%clk 0:02:27.2]} 17... Bxd3 {[%clk 0:02:34.3]} 18. Qxd3
{[%clk 0:02:24.3]} 18... Qc6 {[%clk 0:02:30.2]} 19. Rfe1 {[%clk 0:02:17.6]}
19... b5 {[%clk 0:02:29]} 20. R1e2 {[%clk 0:02:16]} 20... Qc4 {[%clk 0:02:26.1]}
21. Qd2 {[%clk 0:02:13]} 21... a5 {[%clk 0:02:22.2]} 22. Rg3 {[%clk 0:02:10.3]}
22... g6 {[%clk 0:02:00.3]} 23. Rf3 {[%clk 0:02:02.3]} 23... b4 {[%clk
0:01:43.5]} 24. axb4 {[%clk 0:01:35.8]} 24... axb4 {[%clk 0:01:44.4]} 25. Rxf6
{[%clk 0:01:35.8]} 25... bxc3 {[%clk 0:01:43.8]} 26. bxc3 {[%clk 0:01:36.7]}
26... Qxc3 {[%clk 0:01:43.9]} 27. Qf4 {[%clk 0:01:34.1]} 27... Rc4 {[%clk
0:01:29.1]} 28. Rexe6 {[%clk 0:01:05.9]} 28... Rxd4 {[%clk 0:01:27.3]} 29. Qh6
{[%clk 0:00:54]} 29... Re4 {[%clk 0:01:07.8]} 30. Rxe4 {[%clk 0:00:40.6]} 30...
dxe4 {[%clk 0:01:05.6]} 31. Qf4 {[%clk 0:00:24.1]} 31... Qxc2 {[%clk 0:01:00.1]}
32. Qe5 {[%clk 0:00:21.5]} 32... Qc4 {[%clk 0:00:44.7]} 33. Kh2 {[%clk
0:00:21.5]} 33... Rc8 {[%clk 0:00:38.4]} 34. h4 {[%clk 0:00:21.8]} 34... e3
{[%clk 0:00:29.3]} 35. f4 {[%clk 0:00:20.1]} 35... e2 {[%clk 0:00:25.4]} 36. h5
{[%clk 0:00:20.6]} 36... Qc5 {[%clk 0:00:14.5]} 37. Qxe2 {[%clk 0:00:19]} 37...
Qxh5+ {[%clk 0:00:13.9]} 38. Qxh5 {[%clk 0:00:19.2]} 38... gxh5 {[%clk
0:00:14.8]} 39. Rf5 {[%clk 0:00:19.7]} 39... Kg7 {[%clk 0:00:14.7]} 40. Rxh5
{[%clk 0:00:19.2]} 40... h6 {[%clk 0:00:15.4]} 41. Kh3 {[%clk 0:00:19.1]} 41...
Rc3+ {[%clk 0:00:15.5]} 42. g3 {[%clk 0:00:19.5]} 42... Rc1 {[%clk 0:00:15.9]}
43. Kg4 {[%clk 0:00:19.8]} 43... Rc2 {[%clk 0:00:15.9]} 44. Re5 {[%clk
0:00:18.7]} 1/2-1/2

[Event "*** Titled Tuesday Blitz"]
[Site "Chess.com"]
[Date "2020.04.14"]
[Round "5"]
[White "MaximDlugy"]
[Black "viktorskliarov"]
[Result "1-0"]
[WhiteElo "2893"]
[BlackElo "2644"]
[TimeControl "180+1"]
[EndTime "10:50:58 PDT"]
[Termination "MaximDlugy won by resignation"]

1. d4 {[%clk 0:03:00.9]} 1... Nf6 {[%clk 0:02:59.8]} 2. Bf4 {[%clk 0:03:01.2]}
2... g6 {[%clk 0:02:59.6]} 3. Nc3 {[%clk 0:03:01.6]} 3... Bg7 {[%clk 0:03:00.1]}
4. e4 {[%clk 0:03:02.3]} 4... O-O {[%clk 0:03:00]} 5. e5 {[%clk 0:03:02.7]} 5...
Nh5 {[%clk 0:02:55.5]} 6. Bd2 {[%clk 0:03:03.1]} 6... f5 {[%clk 0:02:52.6]} 7.
Be2 {[%clk 0:03:03.2]} 7... Qe8 {[%clk 0:02:51.6]} 8. Bxh5 {[%clk 0:02:54.9]}
8... gxh5 {[%clk 0:02:51.2]} 9. Nf3 {[%clk 0:02:55.8]} 9... e6 {[%clk
0:02:45.8]} 10. Qe2 {[%clk 0:02:53.3]} 10... b6 {[%clk 0:02:44.9]} 11. O-O-O
{[%clk 0:02:53.4]} 11... Ba6 {[%clk 0:02:36.9]} 12. Qe3 {[%clk 0:02:51.4]} 12...
Nc6 {[%clk 0:02:36.9]} 13. Qg5 {[%clk 0:02:43.4]} 13... Qg6 {[%clk 0:02:24.7]}
14. Bf4 {[%clk 0:02:40]} 14... Qxg5 {[%clk 0:02:08.8]} 15. Bxg5 {[%clk 0:02:38]}
15... h6 {[%clk 0:02:07.5]} 16. Bf4 {[%clk 0:02:36.2]} 16... Ne7 {[%clk
0:02:05.9]} 17. Nh4 {[%clk 0:02:32.1]} 17... Bb7 {[%clk 0:01:59.9]} 18. Rhe1
{[%clk 0:02:30.6]} 18... Kf7 {[%clk 0:01:57.5]} 19. Ne2 {[%clk 0:02:29.5]} 19...
b5 {[%clk 0:01:47.5]} 20. Bd2 {[%clk 0:02:14.2]} 20... Rg8 {[%clk 0:01:16.5]}
21. Nf4 {[%clk 0:02:11.6]} 21... Bh8 {[%clk 0:01:04]} 22. f3 {[%clk 0:02:10.1]}
22... Rg5 {[%clk 0:00:53.5]} 23. Nh3 {[%clk 0:01:57.4]} 23... Rag8 {[%clk
0:00:44.1]} 24. g3 {[%clk 0:01:57.5]} 24... Bd5 {[%clk 0:00:28.4]} 25. Rf1
{[%clk 0:01:57]} 25... Bc4 {[%clk 0:00:17.1]} 26. Rf2 {[%clk 0:01:56.3]} 26...
Nc6 {[%clk 0:00:17.2]} 27. Bxg5 {[%clk 0:01:53.1]} 27... hxg5 {[%clk 0:00:17.1]}
28. Ng2 {[%clk 0:01:53.8]} 28... g4 {[%clk 0:00:10.8]} 29. Nhf4 {[%clk
0:01:47.9]} 29... gxf3 {[%clk 0:00:10.8]} 30. Rxf3 {[%clk 0:01:48.4]} 30... h4
{[%clk 0:00:08.8]} 31. Nxh4 {[%clk 0:01:47.6]} 31... b4 {[%clk 0:00:08.8]} 32.
b3 {[%clk 0:01:47.5]} 32... Bb5 {[%clk 0:00:08.8]} 33. Rf2 {[%clk 0:01:44.6]}
33... a5 {[%clk 0:00:08.8]} 34. Kb2 {[%clk 0:01:41]} 34... a4 {[%clk 0:00:08.8]}
35. Nd3 {[%clk 0:01:36.3]} 35... a3+ {[%clk 0:00:08.1]} 36. Kb1 {[%clk 0:01:36]}
36... Rg4 {[%clk 0:00:08.3]} 37. Rf4 {[%clk 0:01:35.4]} 37... Nxd4 {[%clk
0:00:05.7]} 38. Rxg4 {[%clk 0:01:33]} 38... fxg4 {[%clk 0:00:05.9]} 39. Rf1+
{[%clk 0:01:17.8]} 39... Ke8 {[%clk 0:00:06]} 40. Rf4 {[%clk 0:01:18]} 40... Ne2
{[%clk 0:00:04.2]} 41. Rxb4 {[%clk 0:01:14]} 41... Nc3+ {[%clk 0:00:03.7]} 42.
Ka1 {[%clk 0:01:14]} 42... Bxd3 {[%clk 0:00:03.2]} 43. Rb8+ {[%clk 0:01:14.5]}
43... Kf7 {[%clk 0:00:02.2]} 44. Rxh8 {[%clk 0:01:14.8]} 44... Bxc2 {[%clk
0:00:02.2]} 45. Ra8 {[%clk 0:01:12.7]} 45... d6 {[%clk 0:00:01.4]} 46. Ra7
{[%clk 0:01:08.9]} 46... Nd5 {[%clk 0:00:01.6]} 47. exd6 {[%clk 0:01:08.6]}
47... Ke8 {[%clk 0:00:02.2]} 48. dxc7 {[%clk 0:01:08.7]} 48... Kd7 {[%clk
0:00:02.8]} 49. Rxa3 {[%clk 0:01:07.9]} 49... Kxc7 {[%clk 0:00:01.9]} 50. Ra4
{[%clk 0:01:07.2]} 50... Be4 {[%clk 0:00:02.8]} 51. Rxe4 {[%clk 0:01:07.2]}
51... Kd6 {[%clk 0:00:03.7]} 52. Rxg4 {[%clk 0:01:07.6]} 1-0

[Event "*** Titled Tuesday Blitz"]
[Site "Chess.com"]
[Date "2020.04.14"]
[Round "5"]
[White "atalz0"]
[Black "LuckSlayeer"]
[Result "0-1"]
[WhiteElo "2395"]
[BlackElo "2584"]
[TimeControl "180+1"]
[EndTime "10:50:58 PDT"]
[Termination "LuckSlayeer won on time"]

1. d4 {[%clk 0:02:58.1]} 1... Nf6 {[%clk 0:02:57.2]} 2. c4 {[%clk 0:02:57.5]}
2... e6 {[%clk 0:02:57.4]} 3. Nc3 {[%clk 0:02:57.7]} 3... Bb4 {[%clk 0:02:56.4]}
4. Qc2 {[%clk 0:02:58.1]} 4... O-O {[%clk 0:02:55.5]} 5. e4 {[%clk 0:02:58.1]}
5... d5 {[%clk 0:02:51.2]} 6. e5 {[%clk 0:02:58.1]} 6... Ne4 {[%clk 0:02:51.3]}
7. Bd3 {[%clk 0:02:58.7]} 7... c5 {[%clk 0:02:51.4]} 8. Nf3 {[%clk 0:02:59.3]}
8... Nc6 {[%clk 0:02:48.4]} 9. O-O {[%clk 0:02:58.3]} 9... Bxc3 {[%clk
0:02:48.4]} 10. bxc3 {[%clk 0:02:58.1]} 10... cxd4 {[%clk 0:02:48.6]} 11. Ba3
{[%clk 0:01:49.7]} 11... Re8 {[%clk 0:02:16.2]} 12. cxd4 {[%clk 0:01:49.6]}
12... Qa5 {[%clk 0:02:09.8]} 13. Qb2 {[%clk 0:01:41.8]} 13... b6 {[%clk
0:01:49]} 14. Bxe4 {[%clk 0:01:32.9]} 14... dxe4 {[%clk 0:01:47.9]} 15. Ng5
{[%clk 0:01:33.5]} 15... Ba6 {[%clk 0:01:37.6]} 16. Rfc1 {[%clk 0:01:24.3]}
16... Red8 {[%clk 0:01:31]} 17. Bd6 {[%clk 0:01:14.6]} 17... Rxd6 {[%clk
0:01:27.6]} 18. exd6 {[%clk 0:01:08.7]} 18... Qxg5 {[%clk 0:01:27.6]} 19. c5
{[%clk 0:00:55.7]} 19... Rb8 {[%clk 0:00:55.9]} 20. Qa3 {[%clk 0:00:52]} 20...
Be2 {[%clk 0:00:51.9]} 21. Qe3 {[%clk 0:00:40.1]} 21... Qxe3 {[%clk 0:00:45.8]}
22. fxe3 {[%clk 0:00:41]} 22... b5 {[%clk 0:00:46.4]} 23. Kf2 {[%clk 0:00:34.4]}
23... Bd3 {[%clk 0:00:46.4]} 24. a3 {[%clk 0:00:30.3]} 24... Kf8 {[%clk
0:00:45.8]} 25. g4 {[%clk 0:00:27.4]} 25... Ke8 {[%clk 0:00:46.1]} 26. h4 {[%clk
0:00:24.9]} 26... f6 {[%clk 0:00:46.5]} 27. Kg3 {[%clk 0:00:23.9]} 27... Kd7
{[%clk 0:00:44]} 28. Ra2 {[%clk 0:00:21]} 28... a5 {[%clk 0:00:43.8]} 29. g5
{[%clk 0:00:17.3]} 29... f5 {[%clk 0:00:43.1]} 30. Kf4 {[%clk 0:00:16.6]} 30...
b4 {[%clk 0:00:38.8]} 31. axb4 {[%clk 0:00:16.3]} 31... axb4 {[%clk 0:00:39.2]}
32. Rca1 {[%clk 0:00:12.8]} 32... b3 {[%clk 0:00:26.1]} 33. Rb2 {[%clk
0:00:12.1]} 33... Bc4 {[%clk 0:00:24.1]} 34. Ra4 {[%clk 0:00:10.8]} 34... Bd5
{[%clk 0:00:24.1]} 35. h5 {[%clk 0:00:09.1]} 35... Rb7 {[%clk 0:00:23.5]} 36.
Ra1 {[%clk 0:00:08.2]} 36... Nb4 {[%clk 0:00:22.5]} 37. Kg3 {[%clk 0:00:02.8]}
37... Nd3 {[%clk 0:00:22.5]} 38. Rbb1 {[%clk 0:00:02.2]} 38... b2 {[%clk
0:00:22.9]} 0-1

[Event "*** Titled Tuesday Blitz"]
[Site "Chess.com"]
[Date "2020.04.14"]
[Round "5"]
[White "IvanRadivojevic"]
[Black "czasnaszachy"]
[Result "1-0"]
[WhiteElo "2525"]
[BlackElo "2339"]
[TimeControl "180+1"]
[EndTime "10:50:58 PDT"]
[Termination "IvanRadivojevic won by resignation"]

1. e4 {[%clk 0:03:00]} 1... c5 {[%clk 0:02:59.9]} 2. Nc3 {[%clk 0:02:59.7]} 2...
e6 {[%clk 0:03:00.1]} 3. f4 {[%clk 0:03:00.2]} 3... Qc7 {[%clk 0:02:58.9]} 4.
Nf3 {[%clk 0:03:00.5]} 4... Qxf4 {[%clk 0:02:58.6]} 5. d4 {[%clk 0:02:57.4]}
5... Qc7 {[%clk 0:02:57.7]} 6. d5 {[%clk 0:02:56.9]} 6... d6 {[%clk 0:02:54.4]}
7. Be2 {[%clk 0:02:56.9]} 7... e5 {[%clk 0:02:54.3]} 8. O-O {[%clk 0:02:57.2]}
8... g6 {[%clk 0:02:47.8]} 9. Be3 {[%clk 0:02:56]} 9... Bg7 {[%clk 0:02:47.8]}
10. Ng5 {[%clk 0:02:50.3]} 10... f6 {[%clk 0:02:43.6]} 11. Ne6 {[%clk 0:02:49]}
11... Bxe6 {[%clk 0:02:36.1]} 12. dxe6 {[%clk 0:02:49.9]} 12... Ne7 {[%clk
0:02:33.9]} 13. Nd5 {[%clk 0:02:49]} 13... Nxd5 {[%clk 0:02:30.8]} 14. exd5
{[%clk 0:02:49.9]} 14... O-O {[%clk 0:02:30.7]} 15. c4 {[%clk 0:02:49.3]} 15...
Qe7 {[%clk 0:02:26.5]} 16. Qd2 {[%clk 0:02:48.4]} 16... Na6 {[%clk 0:02:25.2]}
17. Bd3 {[%clk 0:02:47.7]} 17... Nc7 {[%clk 0:02:24.7]} 18. h4 {[%clk
0:02:45.6]} 18... Ne8 {[%clk 0:02:22]} 19. h5 {[%clk 0:02:44.6]} 19... f5 {[%clk
0:02:22.1]} 20. hxg6 {[%clk 0:02:38.9]} 20... hxg6 {[%clk 0:02:21.5]} 21. Bg5
{[%clk 0:02:39.4]} 21... Bf6 {[%clk 0:02:16.7]} 22. Bh6 {[%clk 0:02:38.7]} 22...
Ng7 {[%clk 0:02:14.7]} 23. g4 {[%clk 0:02:37.9]} 23... e4 {[%clk 0:02:12.9]} 24.
Bc2 {[%clk 0:02:30]} 24... Bd4+ {[%clk 0:02:12.7]} 25. Kg2 {[%clk 0:02:18.8]}
25... Qh4 {[%clk 0:02:11.8]} 26. Qg5 {[%clk 0:02:17.4]} 26... Qxg5 {[%clk
0:01:49.4]} 27. Bxg5 {[%clk 0:02:17.1]} 27... Rae8 {[%clk 0:01:29.1]} 28. Ba4
{[%clk 0:02:15.8]} 28... b6 {[%clk 0:01:09.6]} 29. Rab1 {[%clk 0:02:03.7]} 29...
f4 {[%clk 0:01:02]} 30. Rxf4 {[%clk 0:01:56]} 30... Rxf4 {[%clk 0:01:00.9]} 31.
Bxf4 {[%clk 0:01:56.9]} 31... Rf8 {[%clk 0:00:59.7]} 32. Bxd6 {[%clk 0:01:54]}
32... Rf2+ {[%clk 0:00:57.9]} 33. Kg3 {[%clk 0:01:54.3]} 33... Rf3+ {[%clk
0:00:50.1]} 34. Kg2 {[%clk 0:01:48.6]} 34... Rf2+ {[%clk 0:00:48]} 35. Kh1
{[%clk 0:01:49]} 35... e3 {[%clk 0:00:45.8]} 36. Bg3 {[%clk 0:01:46.8]} 36...
Rf3 {[%clk 0:00:42.5]} 37. Kg2 {[%clk 0:01:46.4]} 37... Rf8 {[%clk 0:00:37.5]}
38. e7 {[%clk 0:01:45.7]} 38... Rf7 {[%clk 0:00:33.2]} 39. d6 {[%clk 0:01:44.4]}
39... Bf6 {[%clk 0:00:26.1]} 40. Rf1 {[%clk 0:01:28.5]} 40... Bxe7 {[%clk
0:00:20.3]} 41. Rxf7 {[%clk 0:01:28.6]} 41... Kxf7 {[%clk 0:00:20.1]} 42. dxe7
{[%clk 0:01:29]} 42... Kxe7 {[%clk 0:00:20.5]} 43. Kf3 {[%clk 0:01:29.3]} 43...
Ne6 {[%clk 0:00:21]} 44. Kxe3 {[%clk 0:01:29.4]} 44... Nd4 {[%clk 0:00:21.9]}
45. Bd1 {[%clk 0:01:26.8]} 45... a6 {[%clk 0:00:22.1]} 46. Be5 {[%clk
0:01:26.2]} 46... Ne6 {[%clk 0:00:21.4]} 47. Bf3 {[%clk 0:01:23.4]} 47... b5
{[%clk 0:00:21.4]} 48. Bd5 {[%clk 0:01:22.5]} 48... Nd8 {[%clk 0:00:19.8]} 49.
Bc7 {[%clk 0:01:19.5]} 49... Ne6 {[%clk 0:00:18.8]} 50. Bxe6 {[%clk 0:01:15.2]}
50... Kxe6 {[%clk 0:00:19.7]} 51. Ke4 {[%clk 0:01:15.3]} 51... b4 {[%clk
0:00:19.1]} 52. Bg3 {[%clk 0:01:12.1]} 52... g5 {[%clk 0:00:16.1]} 53. Bf2
{[%clk 0:01:11.9]} 53... Kd7 {[%clk 0:00:14.3]} 54. Bxc5 {[%clk 0:01:11.7]} 1-0

[Event "*** Titled Tuesday Blitz"]
[Site "Chess.com"]
[Date "2020.04.14"]
[Round "5"]
[White "2165149677570"]
[Black "tvjosue"]
[Result "0-1"]
[WhiteElo "2309"]
[BlackElo "2487"]
[TimeControl "180+1"]
[EndTime "10:50:58 PDT"]
[Termination "tvjosue won by checkmate"]

1. e4 {[%clk 0:03:00.9]} 1... c6 {[%clk 0:02:59]} 2. d4 {[%clk 0:03:00.8]} 2...
d5 {[%clk 0:02:59.9]} 3. e5 {[%clk 0:03:00.8]} 3... Bf5 {[%clk 0:02:59.4]} 4.
Nf3 {[%clk 0:03:01.3]} 4... e6 {[%clk 0:02:59.3]} 5. Be2 {[%clk 0:03:01.6]} 5...
c5 {[%clk 0:02:59.6]} 6. O-O {[%clk 0:03:00.6]} 6... Nc6 {[%clk 0:02:59.7]} 7.
Nbd2 {[%clk 0:03:00.6]} 7... cxd4 {[%clk 0:02:58.9]} 8. Nb3 {[%clk 0:02:58.3]}
8... Bg6 {[%clk 0:02:58.1]} 9. Nbxd4 {[%clk 0:02:55.8]} 9... Nge7 {[%clk
0:02:58.6]} 10. c3 {[%clk 0:02:40.1]} 10... Qd7 {[%clk 0:02:43.9]} 11. Qb3
{[%clk 0:02:28.1]} 11... Nxd4 {[%clk 0:02:43.3]} 12. Nxd4 {[%clk 0:02:21.1]}
12... Nc6 {[%clk 0:02:44.2]} 13. Nxc6 {[%clk 0:02:16.3]} 13... bxc6 {[%clk
0:02:44]} 14. c4 {[%clk 0:02:15.8]} 14... a6 {[%clk 0:02:27]} 15. Be3 {[%clk
0:02:09.6]} 15... Be7 {[%clk 0:02:25.4]} 16. Rac1 {[%clk 0:01:55.6]} 16... O-O
{[%clk 0:02:24.5]} 17. Qa4 {[%clk 0:01:43.2]} 17... Qb7 {[%clk 0:02:15.5]} 18.
b3 {[%clk 0:01:39.2]} 18... d4 {[%clk 0:02:01.4]} 19. Bxd4 {[%clk 0:01:35]}
19... c5 {[%clk 0:01:51.1]} 20. Be3 {[%clk 0:01:34.9]} 20... Be4 {[%clk
0:01:50.2]} 21. Rfd1 {[%clk 0:01:31]} 21... Bc6 {[%clk 0:01:48.6]} 22. Qa5
{[%clk 0:01:29.1]} 22... Bxg2 {[%clk 0:01:45.7]} 23. Bxc5 {[%clk 0:01:07.8]}
23... Bh3 {[%clk 0:00:58.7]} 24. f3 {[%clk 0:01:05.3]} 24... Rfd8 {[%clk
0:00:50.3]} 25. Rxd8+ {[%clk 0:00:32.1]} 25... Rxd8 {[%clk 0:00:48.1]} 26. Rd1
{[%clk 0:00:31.8]} 26... Rxd1+ {[%clk 0:00:47.1]} 27. Bxd1 {[%clk 0:00:32.7]}
27... Qd7 {[%clk 0:00:46.8]} 28. Be2 {[%clk 0:00:26.8]} 28... Bd8 {[%clk
0:00:35.2]} 29. Qc3 {[%clk 0:00:18.2]} 29... h5 {[%clk 0:00:31.6]} 30. Kf2
{[%clk 0:00:18]} 30... Bh4+ {[%clk 0:00:28.9]} 31. Ke3 {[%clk 0:00:15]} 31...
Bg5+ {[%clk 0:00:27.4]} 32. f4 {[%clk 0:00:15.4]} 32... Bh4 {[%clk 0:00:22.1]}
33. Qd4 {[%clk 0:00:15.2]} 33... Qc7 {[%clk 0:00:18.7]} 34. Bf3 {[%clk
0:00:13.4]} 34... Qa5 {[%clk 0:00:17.9]} 35. b4 {[%clk 0:00:03.5]} 35... Qa3+
{[%clk 0:00:16.3]} 36. Qd3 {[%clk 0:00:03.2]} 36... Qxa2 {[%clk 0:00:16.2]} 37.
Bd6 {[%clk 0:00:02]} 37... Qf2+ {[%clk 0:00:14.7]} 38. Ke4 {[%clk 0:00:02.5]}
38... Bf5# {[%clk 0:00:15]} 0-1

[Event "*** Titled Tuesday Blitz"]
[Site "Chess.com"]
[Date "2020.04.14"]
[Round "5"]
[White "KacperPolOK"]
[Black "TheFireChess"]
[Result "0-1"]
[WhiteElo "2244"]
[BlackElo "2467"]
[TimeControl "180+1"]
[EndTime "10:50:59 PDT"]
[Termination "TheFireChess won by resignation"]

1. e4 {[%clk 0:02:55.2]} 1... c6 {[%clk 0:02:58.2]} 2. Nc3 {[%clk 0:02:53.3]}
2... d5 {[%clk 0:02:59.1]} 3. Nf3 {[%clk 0:02:53.3]} 3... Bg4 {[%clk 0:02:58.8]}
4. h3 {[%clk 0:02:52.6]} 4... Bxf3 {[%clk 0:02:59.3]} 5. Qxf3 {[%clk 0:02:53.5]}
5... Nf6 {[%clk 0:02:59.9]} 6. d3 {[%clk 0:02:52]} 6... e6 {[%clk 0:03:00.2]} 7.
g4 {[%clk 0:02:52.2]} 7... Bb4 {[%clk 0:03:00.5]} 8. Bd2 {[%clk 0:02:51.6]} 8...
d4 {[%clk 0:03:00.8]} 9. Nb1 {[%clk 0:02:51]} 9... Qb6 {[%clk 0:03:01.4]} 10.
Bg2 {[%clk 0:02:45.1]} 10... Bxd2+ {[%clk 0:02:53.5]} 11. Nxd2 {[%clk 0:02:46]}
11... Qxb2 {[%clk 0:02:53.7]} 12. O-O {[%clk 0:02:45.8]} 12... Qa3 {[%clk
0:02:50.9]} 13. Nc4 {[%clk 0:02:35.8]} 13... Qe7 {[%clk 0:02:50]} 14. e5 {[%clk
0:02:36.1]} 14... Nd5 {[%clk 0:02:33.7]} 15. Nd6+ {[%clk 0:02:35.9]} 15... Kf8
{[%clk 0:02:32]} 16. Qe4 {[%clk 0:02:21.9]} 16... h5 {[%clk 0:02:30.2]} 17. g5
{[%clk 0:01:57]} 17... Qxg5 {[%clk 0:01:48.8]} 18. f4 {[%clk 0:01:56.4]} 18...
Qh4 {[%clk 0:01:45.7]} 19. Qxd4 {[%clk 0:01:53]} 19... g5 {[%clk 0:01:40.5]} 20.
Bxd5 {[%clk 0:01:46.3]} 20... cxd5 {[%clk 0:01:35]} 21. Kh2 {[%clk 0:01:27.6]}
21... g4 {[%clk 0:01:28.5]} 22. Qe3 {[%clk 0:01:26.8]} 22... Qxh3+ {[%clk
0:01:12.4]} 23. Qxh3 {[%clk 0:01:26.1]} 23... gxh3 {[%clk 0:01:13.3]} 24. Nxb7
{[%clk 0:01:25.1]} 24... Nc6 {[%clk 0:01:09.2]} 25. Kxh3 {[%clk 0:01:21.9]}
25... Nd4 {[%clk 0:01:08.1]} 26. Nd6 {[%clk 0:01:11.8]} 26... Nf5 {[%clk
0:01:04.8]} 27. Nxf5 {[%clk 0:01:10.9]} 27... exf5 {[%clk 0:01:05.7]} 28. Rab1
{[%clk 0:01:11.8]} 28... Rc8 {[%clk 0:00:59.4]} 29. Rf2 {[%clk 0:01:04.1]} 29...
Rc7 {[%clk 0:00:56.9]} 30. Rb8+ {[%clk 0:00:56]} 30... Kg7 {[%clk 0:00:56.6]}
31. Rg2+ {[%clk 0:00:56.6]} 31... Kh7 {[%clk 0:00:56.3]} 32. Rxh8+ {[%clk
0:00:57.5]} 32... Kxh8 {[%clk 0:00:57.2]} 33. Kh4 {[%clk 0:00:58.4]} 33... Rc6
{[%clk 0:00:48.3]} 34. Kxh5 {[%clk 0:00:51.3]} 34... Kh7 {[%clk 0:00:46.9]} 35.
c4 {[%clk 0:00:35]} 35... dxc4 {[%clk 0:00:44.4]} 36. dxc4 {[%clk 0:00:35.9]}
36... Rh6+ {[%clk 0:00:44.1]} 37. Kg5 {[%clk 0:00:34.6]} 37... Rg6+ {[%clk
0:00:44.6]} 38. Kxf5 {[%clk 0:00:35.2]} 38... Rxg2 {[%clk 0:00:45.5]} 39. Kf6
{[%clk 0:00:35.1]} 39... Kg8 {[%clk 0:00:44.9]} 40. f5 {[%clk 0:00:34.3]} 40...
Rxa2 {[%clk 0:00:41.9]} 41. Ke7 {[%clk 0:00:32.6]} 41... Ra5 {[%clk 0:00:36.9]}
42. Kd6 {[%clk 0:00:29.4]} 42... Kf8 {[%clk 0:00:35.7]} 43. c5 {[%clk
0:00:29.9]} 43... Ke8 {[%clk 0:00:34.7]} 44. c6 {[%clk 0:00:30.4]} 44... Kd8
{[%clk 0:00:35]} 45. e6 {[%clk 0:00:30.9]} 45... fxe6 {[%clk 0:00:30.1]} 46.
fxe6 {[%clk 0:00:30.9]} 46... Ra1 {[%clk 0:00:25.9]} 47. e7+ {[%clk 0:00:28.2]}
47... Ke8 {[%clk 0:00:25.4]} 48. c7 {[%clk 0:00:28.4]} 48... Rc1 {[%clk
0:00:24.8]} 0-1

[Event "*** Titled Tuesday Blitz"]
[Site "Chess.com"]
[Date "2020.04.14"]
[Round "5"]
[White "Sanan_Sjugirov"]
[Black "INLOVEWITHF"]
[Result "1-0"]
[WhiteElo "2830"]
[BlackElo "2586"]
[TimeControl "180+1"]
[EndTime "10:51:01 PDT"]
[Termination "Sanan_Sjugirov won by checkmate"]

1. d4 {[%clk 0:03:00.9]} 1... d5 {[%clk 0:02:58.6]} 2. Nf3 {[%clk 0:03:00.5]}
2... Nf6 {[%clk 0:02:58.1]} 3. Bf4 {[%clk 0:03:00.6]} 3... e6 {[%clk 0:02:56.3]}
4. e3 {[%clk 0:03:00.5]} 4... c5 {[%clk 0:02:55.2]} 5. Nbd2 {[%clk 0:02:59.1]}
5... Bd6 {[%clk 0:02:55.6]} 6. c3 {[%clk 0:02:50.5]} 6... Qc7 {[%clk 0:02:52.3]}
7. Bxd6 {[%clk 0:02:49.3]} 7... Qxd6 {[%clk 0:02:52.1]} 8. Ne5 {[%clk
0:02:49.8]} 8... Nbd7 {[%clk 0:02:46.9]} 9. f4 {[%clk 0:02:48.3]} 9... b6 {[%clk
0:02:27.1]} 10. Bd3 {[%clk 0:02:45.4]} 10... Bb7 {[%clk 0:02:26.5]} 11. O-O
{[%clk 0:02:40.9]} 11... O-O {[%clk 0:02:25.1]} 12. Rf3 {[%clk 0:02:15.1]} 12...
Ne4 {[%clk 0:02:14.6]} 13. Rh3 {[%clk 0:02:03.6]} 13... Ndf6 {[%clk 0:01:37.7]}
14. Ndf3 {[%clk 0:01:58.2]} 14... a5 {[%clk 0:01:31.4]} 15. g4 {[%clk
0:01:56.9]} 15... Nd7 {[%clk 0:01:23.1]} 16. g5 {[%clk 0:01:51.5]} 16... f6
{[%clk 0:01:15.2]} 17. gxf6 {[%clk 0:00:35.6]} 17... Ndxf6 {[%clk 0:01:11]} 18.
Qe2 {[%clk 0:00:30.1]} 18... a4 {[%clk 0:01:05.6]} 19. a3 {[%clk 0:00:29.9]}
19... Qe7 {[%clk 0:00:37.2]} 20. Kh1 {[%clk 0:00:28.6]} 20... Ba6 {[%clk
0:00:32.6]} 21. Bxa6 {[%clk 0:00:23.5]} 21... Rxa6 {[%clk 0:00:32.3]} 22. Qxa6
{[%clk 0:00:20.3]} 22... Nf2+ {[%clk 0:00:31.1]} 23. Kg2 {[%clk 0:00:19.3]}
23... Nxh3 {[%clk 0:00:31.2]} 24. Kxh3 {[%clk 0:00:19.8]} 24... Qe8 {[%clk
0:00:20]} 25. Qe2 {[%clk 0:00:16.8]} 25... Qh5+ {[%clk 0:00:20]} 26. Kg2 {[%clk
0:00:17]} 26... Ne4 {[%clk 0:00:20.9]} 27. Rg1 {[%clk 0:00:14.8]} 27... g5
{[%clk 0:00:19.2]} 28. Kh1 {[%clk 0:00:10.2]} 28... Kh8 {[%clk 0:00:19.2]} 29.
Nxg5 {[%clk 0:00:04]} 29... Qxe2 {[%clk 0:00:07.6]} 30. Ngf7+ {[%clk 0:00:03.7]}
30... Rxf7 {[%clk 0:00:08.5]} 31. Nxf7# {[%clk 0:00:04.6]} 1-0